Cogmind - Beta 14 @@@ ROGUE MODE // 2024.12.19 @ 17:09:02 Player: Dosh Result: Destroyed by S-43 Plague with Heavy Machine Gun Performance ------------- Evolutions (7) 3500 Regions Visited (22) 4400 Robots Destroyed (308) 1540 Value Destroyed (11221) 11221 Prototype IDs (28) 560 Alien Tech Used (0) 0 Bonus (2384) 2384 TOTAL SCORE: 23605 Bonus ------- High Alert Combat Kills 1765 Follower Combat Kills 1832 Registered with UFD 300 MAIN.C Attacked Warlord 500 Scanned by Researcher 500 Friendly Fire -2513 Cogmind --------- Core Integrity 0/1300 Matter 23/300 Energy 100/100 System Corruption 17% Temperature Cool (0) Movement Core (50) Location -3/Testing Parts ------- > --- POWER (3) -------- (None) > --- PROPULSION (4) --- (None) > --- UTILITY (10) ----- (None) > --- WEAPON (4) ------- (None) > --- INVENTORY (5) ---- Experimental Energy Well (145) Long-range Terrain Scanner HERF Cannon Potential Cannon Peak State ------------ > --- POWER ------------ Antimatter Reactor Antimatter Reactor Antimatter Reactor > --- PROPULSION ------- Overtuned Huge Scrapsphere Overtuned Huge Scrapsphere > --- UTILITY ---------- Scrap Suit Experimental Cooling System Large Storage Unit Improved Utility Shielding Layered Medium Armor Plating Advanced Focal Shield 7V-RTL's Ultimate Field Hacking Suite Experimental Hacking Suite > --- WEAPON ----------- Potential Cannon Advanced KE Penetrator Advanced KE Penetrator > --- INVENTORY -------- Neutrino Core Makeshift Microdissipator Network Advanced Energy Well Experimental Energy Well Long-range Terrain Scanner Improved Kinecellerator Improved Medium Armor Plating Advanced Force Field Vortex Shotgun HERF Cannon Railgun Advanced KE Penetrator Micro-nuke Launcher [Rating: 143] Favorites ----------- Power Antimatter Reactor Engine Cooled Ion Engine Power Core Neutrino Core Reactor Antimatter Reactor Propulsion Light Treads Treads Light Treads Leg Flexi-carbon Leg Wheel Overtuned Huge Scrapsphere Flight Unit VTOL Module Utility High-capacity Storage Unit Device Experimental Cooling System Storage High-capacity Storage Unit Processor Core Analyzer Hackware Hacking Suite Protection Hardened Light Armor Plating Weapon Improved EM Shotgun Energy Gun Improved EM Shotgun Energy Cannon Heavy Phase Cannon Ballistic Gun Advanced KE Penetrator Launcher Heavy Missile Launcher Special Weapon CPS Tube Impact Weapon Maul Slashing Weapon Power Sword Build | -11 -10 -9 -9 -9 -9 -6 -6 -6 -6 -5 -5 -5 -5 -5 -5 -4 -4 -4 -4 -3 -3 -3 ------- Run | Yrd Mat Mat Sto Rec Scr Fac Low Low Zio Pro Fac Was Fac Upp Upp Fac Upp Upp War Pro Res Tes Slots Evolved 14 | . . 2 . . . 6 . . . . 2 . . . . 2 . . . . 2 . Power 2 | . . . . . . 1 . . . . . . . . . 1 . . . . . . Propulsion 2 | . . 1 . . . 1 . . . . . . . . . . . . . . . . Utility 8 | . . 1 . . . 3 . . . . 2 . . . . 1 . . . . 1 . Weapon 2 | . . . . . . 1 . . . . . . . . . . . . . . 1 . Parts Attached 228 | 6 9 20 23 . 3 25 1 4 18 1 3 2 42 16 4 30 1 2 2 6 3 7 Power 29 | 1 . 4 1 . . 4 . . 4 . . 1 5 2 1 5 . . . . 1 . Engine 8 | 1 . 4 1 . . 2 . . . . . . . . . . . . . . . . Core 15 | . . . . . . 2 . . 3 . . 1 4 2 1 2 . . . . . . Reactor 6 | . . . . . . . . . 1 . . . 1 . . 3 . . . . 1 . Propulsion 37 | 2 2 6 6 . 2 3 . 2 1 . 3 . 4 2 2 2 . . . . . . Treads 20 | 2 2 6 6 . 2 1 . . 1 . . . . . . . . . . . . . Leg 1 | . . . . . . . . . . . . . . 1 . . . . . . . . Wheel 14 | . . . . . . 2 . 2 . . 3 . 4 1 . 2 . . . . . . Hover . | . . . . . . . . . . . . . . . . . . . . . . . Flight 2 | . . . . . . . . . . . . . . . 2 . . . . . . . Utility 83 | 1 3 6 6 . 1 9 1 1 10 . . 1 18 5 . 13 1 . . 4 1 2 Device 40 | . . 2 1 . 1 4 . 1 6 . . 1 9 3 . 8 1 . . 2 . 1 Storage 8 | 1 2 . 1 . . . . . 1 . . . . . . 2 . . . . . 1 Processor 6 | . . . . . . 1 1 . . . . . 2 1 . 1 . . . . . . Hackware 6 | . . . 1 . . . . . . . . . 3 1 . . . . . . 1 . Protection 23 | . 1 4 3 . . 4 . . 3 . . . 4 . . 2 . . . 2 . . Artifact . | . . . . . . . . . . . . . . . . . . . . . . . Weapon 79 | 2 4 4 10 . . 9 . 1 3 1 . . 15 7 1 10 . 2 2 2 1 5 Energy Gun 9 | 1 1 . 4 . . . . . 1 . . . . . . . . . 1 . . 1 Energy Cannon 18 | . . . 1 . . 3 . 1 . . . . 10 1 . . . . . . . 2 Ballistic Gun 35 | 1 3 4 2 . . 4 . . 1 . . . 1 5 1 7 . 1 1 1 1 2 Ballistic Cannon . | . . . . . . . . . . . . . . . . . . . . . . . Launcher 7 | . . . . . . . . . . 1 . . 2 1 . 1 . 1 . 1 . . Special Weapon 6 | . . . . . . 1 . . 1 . . . 2 . . 2 . . . . . . Impact Weapon 4 | . . . 3 . . 1 . . . . . . . . . . . . . . . . Slashing Weapon . | . . . . . . . . . . . . . . . . . . . . . . . Piercing Weapon . | . . . . . . . . . . . . . . . . . . . . . . . Special Melee Weapon . | . . . . . . . . . . . . . . . . . . . . . . . Unidentified Prototypes 16 | . . . 1 . . 3 . . 5 . . . 1 . . 1 . . 1 1 1 2 Corrupted Parts 2 | . . . . . . . . . . . . . . . 2 . . . . . . . System Corruption 3 | . . . . . . . . . . . . . . . 3 . . . . . . . Parts Lost 53 | . 4 6 . . . . . 3 8 . . 3 3 14 . 1 . . . 1 . 10 Power 6 | . . 1 . . . . . . . . . . 1 1 . . . . . . . 3 Propulsion 9 | . 2 1 . . . . . 1 3 . . . . 1 . . . . . . . 1 Utility 23 | . 1 3 . . . . . 1 4 . . 2 1 5 . 1 . . . 1 . 4 Weapon 15 | . 1 1 . . . . . 1 1 . . 1 1 7 . . . . . . . 2 Highest Loss Streak 10 | . 4 3 . . . . . 3 5 . . 3 1 8 . 1 . . . 1 . 10 To Critical Strikes . | . . . . . . . . . . . . . . . . . . . . . . . Average Slot Usage (%) 82 | . 92 96 98 100 94 77 80 78 71 80 74 69 81 60 8 72 84 84 84 84 84 59 Engine 4 | . 14 11 11 11 11 6 6 6 2 . . . . . . . . . . . . . Core 2 | . . . . . . 4 6 6 8 6 5 7 4 1 . 3 . . . . . . Reactor 4 | . . . . . . . . . 2 6 5 . 5 4 . 9 15 15 15 15 14 9 Treads 13 | . 24 32 33 33 33 7 . . 2 6 5 3 . . . . . . . . . . Wheel 5 | . . . . . . 7 13 14 6 . 4 14 12 5 . 8 10 10 10 10 9 6 Device 12 | . . 5 5 . 5 13 6 8 15 20 17 16 20 13 . 20 21 21 21 21 19 13 Storage 7 | . 14 11 11 11 11 6 6 6 6 6 5 5 5 4 . 2 5 5 5 5 4 3 Processor 2 | . . . . . . 2 12 9 6 6 5 5 5 4 . 3 . . . . . . Hackware 3 | . . . 4 11 5 . . . . . . . 1 4 5 5 5 5 5 5 8 6 Protection 6 | . 9 13 11 11 5 6 6 6 5 6 5 3 3 . . 1 10 10 10 9 9 5 Energy Gun 6 | . 5 . 12 22 22 2 . . 1 6 5 3 . . . . . . . . . . Energy Cannon 3 | . . . . . . 5 13 11 8 6 5 4 16 1 . . . . . . . . Ballistic Gun 8 | . 22 22 7 . . 10 6 6 3 1 . . . 10 1 13 15 14 15 13 19 10 Peak Build Rating 143 | 6 10 15 22 22 32 82 80 80 88 87 88 84 112 105 14 119 122 122 123 126 138 143 Average Rating 64 | 4 6 12 17 22 25 63 79 72 66 85 85 65 102 72 6 93 121 121 121 122 137 103 On Entrance 64 | . 6 9 12 22 22 32 79 80 70 87 85 88 30 93 5 14 119 122 122 122 123 138 Naked Turns 75 | . . . . . . . . . . . . . . 30 . . . . . . . 45 Heaviest Build 156 | 14 31 39 60 59 62 110 91 97 136 137 137 92 156 106 8 115 123 128 123 128 130 143 Greatest Support 82 | 40 40 60 63 63 65 82 40 48 48 23 48 48 52 20 8 40 40 40 40 40 40 40 Greatest Overweight (x) 40 | . 6 . . . . 5 2 4 28 5 8 2 40 27 . 3 3 6 3 3 3 3 Average Overweight (x) 1 | . . . . . . 2 2 2 3 5 3 1 2 8 . 1 2 3 3 2 3 1 Largest Inventory Capacity 20 | 8 15 15 20 20 20 20 20 20 20 20 20 20 20 20 5 15 15 15 15 15 15 15 Average Capacity 17 | 7 8 15 19 20 20 20 20 20 20 20 20 20 20 19 5 10 15 15 15 15 15 12 Most Carried 20 | 1 9 15 20 20 20 20 20 20 20 20 20 20 20 18 3 15 15 15 15 15 13 15 Average Carried 16 | . 3 11 17 20 19 19 20 19 17 19 19 20 19 15 3 7 14 14 14 13 11 12 Final Capacity 20 | 8 15 15 20 20 20 20 20 20 20 20 20 20 20 5 5 15 15 15 15 15 15 5 Final Carried 20 | 1 9 13 20 20 20 20 20 19 19 20 19 20 19 3 3 15 15 15 14 14 12 5 Class Distribution -------------------- 33% | Mutant 32% | Scavenger-Scrapper 15% | Scavenger-Mutant 11% | Scavenger-Tank 4% | Scavenger-Gunner Dominant Class ---------------- Mutant | -10/Materials Mutant | -9/Materials Scavenger-Mutant | -9/Storage Mutant | -9/Recycling Mutant | -9/Scraptown Scavenger-Scrapper | -6/Factory Scavenger-Scrapper | -6/Lower Caves Scrapper | -6/Lower Caves Scavenger-Tank | -6/Zion Scavenger-Tank | -5/Proximity Caves Scavenger-Tank | -5/Factory Scavenger-Mutant | -5/Waste Scavenger-Scrapper | -5/Factory Scavenger-Mutant | -5/Upper Caves Mutant | -5/Upper Caves Scavenger-Scrapper | -4/Factory Scavenger-Scrapper | -4/Upper Caves Scavenger-Scrapper | -4/Upper Caves Scavenger-Scrapper | -4/Warlord Scavenger-Scrapper | -3/Proximity Caves Scavenger-Tank | -3/Research Scavenger-Tank | -3/Testing Resources | -11 -10 -9 -9 -9 -9 -6 -6 -6 -6 -5 -5 -5 -5 -5 -5 -4 -4 -4 -4 -3 -3 -3 ----------- Run | Yrd Mat Mat Sto Rec Scr Fac Low Low Zio Pro Fac Was Fac Upp Upp Fac Upp Upp War Pro Res Tes Matter Collected 8820 | 227 79 1248 504 . 523 1167 10 128 149 239 78 . 524 587 56 1391 556 427 . 388 515 24 Remotely . | . . . . . . . . . . . . . . . . . . . . . . . Salvage Created 14534 | . 223 1841 1416 170 . 1682 . 114 157 491 254 . 2856 420 29 2739 457 637 . 329 611 108 Parts 738 | . 14 118 94 9 . 64 . 6 17 18 6 . 139 17 2 151 16 20 . 16 26 5 Haulers Intercepted 16 | . . 5 5 . . 2 . . . . . . 1 . . 2 . . . 1 . . Recyclers Shooed 11 | . . 3 5 . . 1 . . . . . . 1 . . 1 . . . . . . Parts Field Recycled . | . . . . . . . . . . . . . . . . . . . . . . . Retrieved Matter . | . . . . . . . . . . . . . . . . . . . . . . . Parts Self-Destructed 120 | . . . . . . . . 12 . 17 . . . 17 4 . 16 25 . 29 . . Prevented 2 | . . . . . . . . 1 . . . . . . 1 . . . . . . . Kills | -11 -10 -9 -9 -9 -9 -6 -6 -6 -6 -5 -5 -5 -5 -5 -5 -4 -4 -4 -4 -3 -3 -3 ------- Run | Yrd Mat Mat Sto Rec Scr Fac Low Low Zio Pro Fac Was Fac Upp Upp Fac Upp Upp War Pro Res Tes Combat Hostiles Destroyed 229 | . 7 34 26 1 . 16 . 4 1 12 . . 42 9 1 28 9 15 . 13 8 3 Guns 145 | . 7 34 24 1 . 12 . 2 . 5 . . . 7 1 23 9 12 . . 8 . Cannons 45 | . . . . . . 4 . 2 1 2 . . 36 . . . . . . . . . AOE 36 | . . . 1 . . . . . . 4 . . 5 2 . 5 . 3 . 13 . 3 Classes Destroyed 21 | . 4 5 1 . . 4 . . 1 . . . 2 1 . . . 1 . 1 1 . Worker 9 | . . . 1 . . 1 . . . . . . 4 . . 2 . . . . 1 . Builder 9 | . 1 . . 1 . . . . . . . . 2 . . 5 . . . . . . Tunneler 3 | . . 1 . . . . . . . . . . 1 . . 1 . . . . . . Hauler 16 | . . 5 5 . . 2 . . . . . . 1 . . 2 . . . 1 . . Recycler 15 | . . 5 . 1 . 2 . . . . 2 . 2 . . 3 . . . . . . Mechanic 2 | . . . . . . . . . . . . . 1 . . 1 . . . . . . Operator 4 | . . 1 2 . . . . . . . . . 1 . . . . . . . . . Drone 1 | . . . . . . . . . . . . . . . . . . . . 1 . . Watcher 8 | . 1 2 1 . . 1 . . . . . . 3 . . . . . . . . . Swarmer 75 | . 3 13 7 . . 1 . 4 . 4 . . 15 2 1 5 4 7 . 9 . . Grunt 80 | . 4 14 9 . . 8 . . . 5 . . 17 5 . 7 2 . . 3 3 3 Brawler 2 | . . . . . . 1 . . . 1 . . . . . . . . . . . . Duelist 6 | . . . . . . 1 . . . 1 . . 1 . . 3 . . . . . . Protector 2 | . . . . . . . . . . . . . 1 . . 1 . . . . . . Sentry 34 | . . 7 10 1 . 4 . . . . . . 5 . . 5 1 1 . . . . Hunter 5 | . . . . . . . . . . . . . . 2 . . 2 . . . 1 . Programmer 16 | . . . . . . 1 . . . 1 . . 3 . . 7 . 1 . . 3 . Behemoth 1 | . . . . . . . . . . . . . . . . . . . . . 1 . Scrapoid 13 | . . . . . . 3 . . . . . . 5 . . 5 . . . . . . Tinkerer 1 | . . . . . . . . . 1 . . . . . . . . . . . . . Thug 4 | . . . . . . . . . . . . . . . . . . 4 . . . . Butcher 1 | . . . . . . . . . . . . . . . . . . 1 . . . . Mutant 1 | . . . . . . . . . . . . . . . . . . 1 . . . . Best Kill Streak 11 | . 5 6 5 2 . 6 . 4 1 4 1 . 11 5 1 11 3 6 . 8 6 3 Combat Bots Only 9 | . 3 4 4 1 . 3 . 4 1 4 . . 9 5 1 7 3 6 . 8 3 3 Max Kills in Single Turn 4 | . 1 2 1 2 . 1 . 1 1 3 1 . 3 1 1 2 1 2 . 4 1 2 Gunslinging 1 | . . 1 . . . . . . . . . . . . . 1 . . . . . . Exploded 4 | . . . 1 . . . . . . 3 . . 3 1 . 2 . 2 . 4 . 2 Melee . | . . . . . . . . . . . . . . . . . . . . . . . Uniques/NPCs Destroyed 1 | . . . . . . . . . 1 . . . . . . . . . . . . . 7V-RTL (-6/Zion) Combat | -11 -10 -9 -9 -9 -9 -6 -6 -6 -6 -5 -5 -5 -5 -5 -5 -4 -4 -4 -4 -3 -3 -3 -------- Run | Yrd Mat Mat Sto Rec Scr Fac Low Low Zio Pro Fac Was Fac Upp Upp Fac Upp Upp War Pro Res Tes Hostile Shots Fired 1783 | . 96 149 86 2 . 110 . 21 77 33 . 4 240 190 5 164 68 104 . 114 160 160 Missed 511 | . 14 43 21 . . 48 . 7 16 12 . 1 69 39 1 59 19 37 . 37 41 47 Damage Taken 16632 | . 787 1159 844 39 . 725 . 1357 1531 92 . 134 1884 2914 87 856 174 249 . 549 489 2762 Core 3620 | . 176 99 147 6 . 131 . 525 181 8 . 41 163 593 87 76 20 27 . 38 39 1263 Absorbed by Shields 7435 | . . 86 . . . . . . 79 312 . . 1211 . . 925 492 849 . 1155 1610 716 Redirected to Shielding 297 | . 51 . . . . . . . . . . . . . . 41 13 25 . 67 55 45 Ignored by Resistances 1616 | . . . . . . 21 . . . . . . . . . 333 179 237 . 260 540 46 Regen/Repaired (Parts) 762 | . . . . . 199 20 . . . . . . 202 . . 125 2 10 66 . 138 . Core Remaining (%) 43 | 100 29 . . . 37 . . . . . . . . . 11 . . . . 86 . . Volleys Fired 775 | . 26 132 74 3 . 56 . 21 44 26 3 . 104 34 4 121 18 27 . 25 39 18 Largest 4 | . 2 2 2 2 . 3 . 3 3 3 2 . 3 3 1 3 3 3 . 3 4 4 Hottest 294 | . 70 46 90 90 . 113 . 102 242 228 123 . 294 270 23 114 105 105 . 105 140 200 Shots Fired 1869 | . 51 264 146 6 . 152 . 61 66 73 6 . 295 79 4 302 55 76 . 57 152 24 Gun 1339 | . 51 264 146 6 . 102 . 21 9 43 3 . 4 46 4 294 55 72 . 48 152 19 Cannon 487 | . . . . . . 48 . 40 55 25 3 . 281 30 . . . . . . . 5 Launcher 31 | . . . . . . . . . . 5 . . 6 3 . 4 . 4 . 9 . . Special 12 | . . . . . . 2 . . 2 . . . 4 . . 4 . . . . . . Kinetic 1198 | . 42 264 70 . . 90 . 21 9 16 . . 4 46 4 294 55 72 . 48 152 11 Thermal 526 | . 9 . . . . 48 . 40 55 52 6 . 281 30 . . . . . . . 5 Explosive 31 | . . . . . . . . . . 5 . . 6 3 . 4 . 4 . 9 . . Electromagnetic 94 | . . . 76 6 . 12 . . . . . . . . . . . . . . . . Entropic 8 | . . . . . . . . . . . . . . . . . . . . . . 8 Robot Hit Streak 26 | . 6 18 12 17 . 18 . 2 26 5 8 . 24 6 6 16 5 5 . 8 9 5 Robot Miss Streak 7 | . 4 5 4 . . 5 . 3 2 7 . . 5 2 . 7 6 5 . 2 4 5 Penetration Max 2 | . . . . . . 1 . . . . . . . 1 . 2 1 1 . . . . Secondary Targets 23 | . 1 4 1 . . . . . . . . . . 1 . 6 2 4 . . 4 . Max Gunslinging Chain 1 | . 1 1 1 . . . . . . . . . . 1 . 1 1 1 . . 1 . Shots Hit Robots 1069 | . 29 158 120 5 . 94 . 5 52 35 5 . 157 48 4 167 26 35 . 36 80 13 Core Hits 527 | . 12 65 60 5 . 47 . 5 12 17 3 . 84 21 1 102 14 23 . 29 23 4 Critical Kills 36 | . . . . . . 4 . . . 1 1 . 5 1 . 10 5 5 . . 4 . Critical Parts Destroyed 30 | . . . . . . 2 . . 2 1 1 . . 1 . 3 5 4 . 2 9 . Critical Strikes 75 | . . . . . . 6 . . 3 2 2 . 5 2 . 13 10 10 . 5 17 . Meltdown 5 | . . . . . . . . . . . . . 5 . . . . . . . . . Destroy 69 | . . . . . . 5 . . 3 2 2 . . 2 . 13 10 10 . 5 17 . Smash 1 | . . . . . . 1 . . . . . . . . . . . . . . . . Melee Attacks 10 | . . . 8 . . 2 . . . . . . . . . . . . . . . . Impact 10 | . . . 8 . . 2 . . . . . . . . . . . . . . . . Slashing . | . . . . . . . . . . . . . . . . . . . . . . . Piercing . | . . . . . . . . . . . . . . . . . . . . . . . Sneak Attacks 2 | . . . . . . 2 . . . . . . . . . . . . . . . . Combat Hostiles . | . . . . . . . . . . . . . . . . . . . . . . . Follow-up Attacks . | . . . . . . . . . . . . . . . . . . . . . . . Damage Inflicted 36768 | . 429 2525 2027 165 . 2557 . 236 2959 1558 144 . 6886 1635 60 6522 755 1670 . 2967 2150 1523 Guns 18587 | . 426 2500 1836 93 . 1529 . 83 229 563 81 . 79 738 60 4976 755 1169 . 968 2132 370 Cannons 11021 | . . . . . . 827 . 153 2730 516 63 . 5679 578 . . . . . . . 475 Explosions 6808 | . . . 138 30 . 24 . . . 479 . . 1121 319 . 1536 . 501 . 1999 . 661 Melee 201 | . . . 24 . . 177 . . . . . . . . . . . . . . . . Ramming 151 | . 3 25 29 42 . . . . . . . . 7 . . 10 . . . . 18 17 Kinetic 16510 | . 332 2500 820 . . 1390 . 83 229 221 . . 79 738 60 4976 755 1169 . 968 2132 58 Thermal 12899 | . 94 . 138 30 . 827 . 153 2730 858 144 . 5679 692 . 418 . . . . . 1136 Explosive 5447 | . . . . . . 24 . . . 479 . . 1121 205 . 1118 . 501 . 1999 . . Electromagnetic 1248 | . . . 1016 93 . 139 . . . . . . . . . . . . . . . . Impact 201 | . . . 24 . . 177 . . . . . . . . . . . . . . . . Slashing . | . . . . . . . . . . . . . . . . . . . . . . . Piercing . | . . . . . . . . . . . . . . . . . . . . . . . Entropic 312 | . . . . . . . . . . . . . . . . . . . . . . 312 Highest Corruption 17 | . . . . . . . . 6 6 8 . . 3 . 3 4 4 4 4 3 16 17 Average Corruption 5 | . . . . . . . . 5 6 7 . . 2 . 1 3 4 4 4 2 12 16 Corruption Purged 4 | . . . . . . . . . . . . . 4 . . . . . . . . . Corruption Blocked . | . . . . . . . . . . . . . . . . . . . . . . . Effects 158 | . . . . . . . . 7 14 36 . . 13 . . 14 10 20 1 7 25 11 Message Errors 26 | . . . . . . . . 3 2 6 . . 2 . . 1 2 3 . 2 5 . Matter Fused 42 | . . . . . . . . 3 3 10 . . 2 . . 4 3 7 1 2 4 3 Heat Flow Errors 16 | . . . . . . . . . 1 6 . . 2 . . 2 . 1 . 1 3 . Energy Discharges 22 | . . . . . . . . 1 2 4 . . 2 . . 3 2 2 . . 4 2 Parts Rejected 2 | . . . . . . . . . 1 . . . . . . . . . . . 1 . Data Loss (minor) 17 | . . . . . . . . . 1 5 . . 2 . . 3 . 3 . . 1 2 Data Loss (major) 3 | . . . . . . . . . . . . . 1 . . . 1 1 . . . . Misfires 11 | . . . . . . . . . 2 1 . . 1 . . 1 1 3 . 1 1 . Alerts 5 | . . . . . . . . . 1 2 . . . . . . 1 . . . 1 . Misdirections 1 | . . . . . . . . . . . . . . . . . . . . . . 1 Weapon Failures 13 | . . . . . . . . . 1 2 . . 1 . . . . . . 1 5 3 Overload Shots 55 | . . . . . . . . . 52 3 . . . . . . . . . . . . Effects 3 | . . . . . . . . . 3 . . . . . . . . . . . . . Energy Bleed 1 | . . . . . . . . . 1 . . . . . . . . . . . . . Heat Surge 2 | . . . . . . . . . 2 . . . . . . . . . . . . . Overflow Damage 816 | . . . 4 . . 89 . . . 76 . . 259 184 . 79 . . . 43 . 82 Projectiles 335 | . . . . . . 2 . . . 49 . . 186 64 . . . . . . . 34 Explosions 390 | . . . . . . . . . . 27 . . 73 120 . 79 . . . 43 . 48 Melee 91 | . . . 4 . . 87 . . . . . . . . . . . . . . . . Knockbacks 3 | . . 1 1 1 . . . . . . . . . . . . . . . . . . Impact 3 | . . 1 1 1 . . . . . . . . . . . . . . . . . . Kinetic . | . . . . . . . . . . . . . . . . . . . . . . . Secondary . | . . . . . . . . . . . . . . . . . . . . . . . Self-Inflicted Damage 525 | . . . . 13 . 88 . . . 18 . . 20 215 . 5 . 71 . 78 9 8 Shots 11 | . . . . 1 . 1 . . . 1 . . 1 4 . . . 1 . 2 . . Rammed 18 | . . 4 6 3 . . . . . . . . 1 . . 1 . . . . 1 2 Targets Rammed 20 | . 1 4 7 3 . . . . . . . . 1 . . 1 . . . . 1 2 Kicked . | . . . . . . . . . . . . . . . . . . . . . . . Crushed 2 | . 1 . 1 . . . . . . . . . . . . . . . . . . . Highest Temperature 639 | . 126 191 345 69 . 200 . 250 564 197 . . 554 639 . 226 . 240 . 121 189 138 Average Temperature 115 | . 47 55 71 33 . 73 . 68 178 102 . . 145 294 . 110 . 136 . 47 89 65 Received Heat Transfer 2652 | . 228 430 321 9 . 128 . 36 170 13 . . 558 483 . 88 22 30 . 73 28 35 Effects 34 | . . . 1 . . . . . 5 . . . 9 19 . . . . . . . . Shutdowns 10 | . . . . . . . . . 2 . . . 4 4 . . . . . . . . Energy Bleed 5 | . . . 1 . . . . . 1 . . . . 3 . . . . . . . . Interference 9 | . . . . . . . . . 2 . . . 3 4 . . . . . . . . Matter Decay 3 | . . . . . . . . . . . . . . 3 . . . . . . . . Short Circuit 4 | . . . . . . . . . . . . . 2 2 . . . . . . . . Damage (minor) 3 | . . . . . . . . . . . . . . 3 . . . . . . . . Siege Activations . | . . . . . . . . . . . . . . . . . . . . . . . Robots Corrupted 2 | . . . 2 . . . . . . . . . . . . . . . . . . . Combat Hostiles 1 | . . . 1 . . . . . . . . . . . . . . . . . . . Parts Fried 14 | . . . 9 2 . 3 . . . . . . . . . . . . . . . . Impact Corruptions 3 | . . . 1 . . 2 . . . . . . . . . . . . . . . . Robots Melted 6 | . . . . . . . . . . 1 . . 5 . . . . . . . . . Combat Hostiles 2 | . . . . . . . . . . 1 . . 1 . . . . . . . . . Parts Melted 33 | . . . . . . 4 . . . 5 . . 17 2 . 2 1 . . . 1 1 Heat Transferred 12136 | . 259 . 200 50 . 1250 . 250 368 1154 211 . 6570 709 . 275 . . . . . 840 Parts Sabotaged . | . . . . . . . . . . . . . . . . . . . . . . . Parts Stolen . | . . . . . . . . . . . . . . . . . . . . . . . Parts Stripped . | . . . . . . . . . . . . . . . . . . . . . . . Power Chain Reactions 3 | . . . 2 1 . . . . . . . . . . . . . . . . . . Alert | -11 -10 -9 -9 -9 -9 -6 -6 -6 -6 -5 -5 -5 -5 -5 -5 -4 -4 -4 -4 -3 -3 -3 ------- Run | Yrd Mat Mat Sto Rec Scr Fac Low Low Zio Pro Fac Was Fac Upp Upp Fac Upp Upp War Pro Res Tes Peak Influence 1853 | . 130 669 624 337 . 473 . . . . 69 29 1418 . . 1853 . . . . 1156 691 Initial 643 | . . 54 148 190 . . . . . . 44 24 6 . . 237 . . . . 643 585 Average 406 | . 46 389 398 167 . 205 . . . . 55 22 520 . . 597 . . . . 897 631 Maximum Alert Level 5 | . . 2 2 1 . 2 . . . . . . 4 . . 5 . . . . 4 2 Low Security (%) 34 | 100 100 12 8 69 . 51 . . . . 100 100 32 . . 25 . . . . . . Level 1 23 | . . 29 40 30 . 37 . . . . . . 17 . . 21 . . . . . . Level 2 26 | . . 58 51 . . 10 . . . . . . 12 . . 26 . . . . 19 100 Level 3 10 | . . . . . . . . . . . . . 22 . . 12 . . . . 76 . Level 4 3 | . . . . . . . . . . . . . 14 . . 3 . . . . 4 . Level 5 1 | . . . . . . . . . . . . . . . . 10 . . . . . . High Security . | . . . . . . . . . . . . . . . . . . . . . . . Max Security . | . . . . . . . . . . . . . . . . . . . . . . . Squads Dispatched 50 | . . 6 2 . . 4 . 1 . . . . 15 . . 15 . . . . 5 2 Investigation 16 | . . 4 . . . 1 . . . . . . 3 . . 7 . . . . 1 . Extermination 6 | . . . . . . 2 . . . . . . 1 . . 2 . . . . 1 . Reinforcement 18 | . . 2 2 . . 1 . . . . . . 5 . . 4 . . . . 2 2 Assault 7 | . . . . . . . . 1 . . . . 3 . . 2 . . . . 1 . Garrison 3 | . . . . . . . . . . . . . 3 . . . . . . . . . Intercept . | . . . . . . . . . . . . . . . . . . . . . . . Searches Triggered . | . . . . . . . . . . . . . . . . . . . . . . . Construction Impeded 4 | . . 1 . . . . . . . . . . . . . 2 . . . . . 1 Haulers Reinforced 4 | . . . . . . 1 . . . . . . 2 . . 1 . . . . . . Active Scanning Responses . | . . . . . . . . . . . . . . . . . . . . . . . Cargo Convoy Interrupts . | . . . . . . . . . . . . . . . . . . . . . . . Stealth | -11 -10 -9 -9 -9 -9 -6 -6 -6 -6 -5 -5 -5 -5 -5 -5 -4 -4 -4 -4 -3 -3 -3 --------- Run | Yrd Mat Mat Sto Rec Scr Fac Low Low Zio Pro Fac Was Fac Upp Upp Fac Upp Upp War Pro Res Tes Distress Signals 4 | . . . 2 . . . . . . . . . . . . . . . . 1 . 1 Communications Jammed 6 | . . . . . . . . . . . . . 6 . . . . . . . . . Distress Signals 6 | . . . . . . . . . . . . . 6 . . . . . . . . . Times Spotted 383 | . 10 48 32 1 . 22 . 9 2 12 1 6 85 17 6 48 12 15 . 18 26 13 Peak Tracking Total 10 | . 6 5 3 . . 4 . 9 1 4 1 6 7 6 5 8 7 5 . 10 6 9 Tactical Retreats 42 | . 1 5 1 . . . . 4 1 1 . . 13 7 1 1 4 . . . 2 1 Traps | -11 -10 -9 -9 -9 -9 -6 -6 -6 -6 -5 -5 -5 -5 -5 -5 -4 -4 -4 -4 -3 -3 -3 ------- Run | Yrd Mat Mat Sto Rec Scr Fac Low Low Zio Pro Fac Was Fac Upp Upp Fac Upp Upp War Pro Res Tes Traps Triggered 13 | . . 4 . . . 2 . . . . 1 . 2 . . 2 . . . . 2 . Indirectly . | . . . . . . . . . . . . . . . . . . . . . . . Trap Hack Attempts . | . . . . . . . . . . . . . . . . . . . . . . . Triggered . | . . . . . . . . . . . . . . . . . . . . . . . Disarmed . | . . . . . . . . . . . . . . . . . . . . . . . Reprogrammed . | . . . . . . . . . . . . . . . . . . . . . . . Reused . | . . . . . . . . . . . . . . . . . . . . . . . Traps Extracted . | . . . . . . . . . . . . . . . . . . . . . . . Installed . | . . . . . . . . . . . . . . . . . . . . . . . Triggered 8 | . . . . . . . . . . . . . . . . . . . 8 . . . Machines | -11 -10 -9 -9 -9 -9 -6 -6 -6 -6 -5 -5 -5 -5 -5 -5 -4 -4 -4 -4 -3 -3 -3 ---------- Run | Yrd Mat Mat Sto Rec Scr Fac Low Low Zio Pro Fac Was Fac Upp Upp Fac Upp Upp War Pro Res Tes Machines Disabled 58 | . . 5 2 . . 4 . . . . 1 . 8 2 . 31 . 2 . . 1 2 Max in Single Turn 2 | . . 2 1 . . 1 . . . . 1 . 1 2 . 2 . 1 . . 1 2 Garrison Access 2 | . . . . . . . . . . . . . 2 . . . . . . . . . Machines Repaired . | . . . . . . . . . . . . . . . . . . . . . . . Machines Dismantled . | . . . . . . . . . . . . . . . . . . . . . . . Machines Sabotaged . | . . . . . . . . . . . . . . . . . . . . . . . Overloaded Fab Kills . | . . . . . . . . . . . . . . . . . . . . . . . Hacking | -11 -10 -9 -9 -9 -9 -6 -6 -6 -6 -5 -5 -5 -5 -5 -5 -4 -4 -4 -4 -3 -3 -3 --------- Run | Yrd Mat Mat Sto Rec Scr Fac Low Low Zio Pro Fac Was Fac Upp Upp Fac Upp Upp War Pro Res Tes Machines Accessed 71 | . 6 9 8 11 . 5 1 . . . . . 11 1 . 10 . 3 2 . 4 . Terminals 42 | . 6 9 7 6 . 2 . . . . . . 4 1 . 4 . . . . 3 . Fabricators 5 | . . . . . . 3 . . . . . . . . . 1 . . . . 1 . Repair Stations 3 | . . . . . . . . . . . . . 1 . . 2 . . . . . . Recycling Units 9 | . . . . 5 . . . . . . . . 2 . . 2 . . . . . . Scanalyzers 2 | . . . . . . . . . . . . . 1 . . 1 . . . . . . Garrison Access 4 | . . . 1 . . . . . . . . . 3 . . . . . . . . . Total Hacks 195 | . 27 26 23 34 . 12 1 . . . . . 23 1 . 30 . 9 2 . 7 . Successful 108 | . 14 13 11 23 . 3 1 . . . . . 11 1 . 16 . 9 2 . 4 . Failed 86 | . 13 13 12 10 . 9 . . . . . . 12 . . 14 . . . . 3 . Catastrophic 13 | . 1 3 . . . 2 . . . . . . 4 . . 2 . . . . 1 . Database Lockouts 1 | . . . . 1 . . . . . . . . . . . . . . . . . . Manual 112 | . 21 20 16 29 . 6 . . . . . . 5 . . 14 . . . . 1 . Terminals 139 | . 27 26 20 27 . 6 . . . . . . 11 1 . 16 . . . . 5 . Fabricators 11 | . . . . . . 6 . . . . . . . . . 3 . . . . 2 . Repair Stations 10 | . . . . . . . . . . . . . 3 . . 7 . . . . . . Recycling Units 11 | . . . . 7 . . . . . . . . 2 . . 2 . . . . . . Scanalyzers 5 | . . . . . . . . . . . . . 3 . . 2 . . . . . . Garrison Access 7 | . . . 3 . . . . . . . . . 4 . . . . . . . . . Terminal Hacks 50 | . 6 7 4 9 . 1 1 . . . . . 3 1 . 5 . 9 2 . 2 . Record 8 | . . . . . . . . . . . . . . 1 . . . 7 . . . . Part Schematic 1 | . . . . . . . . . . . . . 1 . . . . . . . . . Robot Schematic 1 | . 1 . . . . . . . . . . . . . . . . . . . . . Robot Analysis 5 | . 3 . . 2 . . . . . . . . . . . . . . . . . . Prototype ID Bank 11 | . 2 2 1 6 . . . . . . . . . . . . . . . . . . Open Door 7 | . . . 2 . . . 1 . . . . . . . . . . 2 2 . . . Branch Access Points 4 | . . 1 . . . 1 . . . . . . . . . 1 . . . . 1 . Alert Level 3 | . . 1 . . . . . . . . . . . . . 1 . . . . 1 . Unreport Threat 7 | . . 3 1 . . . . . . . . . 2 . . 1 . . . . . . Locate Traps 1 | . . . . . . . . . . . . . . . . 1 . . . . . . Recall Investigation 1 | . . . . . . . . . . . . . . . . 1 . . . . . . Hauler Manifests 1 | . . . . 1 . . . . . . . . . . . . . . . . . . Fabricator Hacks 5 | . . . . . . 1 . . . . . . . . . 2 . . . . 2 . Network Status 1 | . . . . . . 1 . . . . . . . . . . . . . . . . Load Schematic 2 | . . . . . . . . . . . . . . . . 1 . . . . 1 . Build 2 | . . . . . . . . . . . . . . . . 1 . . . . 1 . Repair Station Hacks 6 | . . . . . . . . . . . . . 2 . . 4 . . . . . . Scan Component 4 | . . . . . . . . . . . . . 1 . . 3 . . . . . . Repair 2 | . . . . . . . . . . . . . 1 . . 1 . . . . . . Recycling Unit Hacks . | . . . . . . . . . . . . . . . . . . . . . . . Scanalyzer 4 | . . . . . . . . . . . . . 2 . . 2 . . . . . . Insert Component 3 | . . . . . . . . . . . . . 2 . . 1 . . . . . . Analyze 1 | . . . . . . . . . . . . . . . . 1 . . . . . . Garrison Access Hacks 2 | . . . . . . . . . . . . . 2 . . . . . . . . . Seal Access 2 | . . . . . . . . . . . . . 2 . . . . . . . . . Unauthorized Hacks 39 | . 8 6 7 12 . 1 . . . . . . 2 . . 3 . . . . . . Terminals 29 | . 8 6 7 7 . . . . . . . . . . . 1 . . . . . . Assimilate 1 | . . . 1 . . . . . . . . . . . . . . . . . . . Botnet 7 | . 2 1 1 2 . . . . . . . . . . . 1 . . . . . . Operators 1 | . 1 . . . . . . . . . . . . . . . . . . . . . Skim 20 | . 5 5 5 5 . . . . . . . . . . . . . . . . . . Fabricators 1 | . . . . . . 1 . . . . . . . . . . . . . . . . Haulers 1 | . . . . . . 1 . . . . . . . . . . . . . . . . Repair Stations 4 | . . . . . . . . . . . . . 2 . . 2 . . . . . . Recycling Units 5 | . . . . 5 . . . . . . . . . . . . . . . . . . Tunnel 5 | . . . . 5 . . . . . . . . . . . . . . . . . . Scrapoids 4 | . . . . . . . . . . . . . 2 . . 2 . . . . . . Scanalyzers . | . . . . . . . . . . . . . . . . . . . . . . . Garrison Access . | . . . . . . . . . . . . . . . . . . . . . . . Data Cores Recovered 1 | . . . . . . . . . . . . . 1 . . . . . . . . . Used . | . . . . . . . . . . . . . . . . . . . . . . . Hacking Detections 45 | . 5 8 8 4 . 4 . . . . . . 6 . . 6 . . . . 4 . Full Trace Events 6 | . . . . 1 . . . . . . . . . . . 4 . . . . 1 . Feedback Events . | . . . . . . . . . . . . . . . . . . . . . . . Feedback Blocked . | . . . . . . . . . . . . . . . . . . . . . . . Robot Schematics Acquired 4 | . 1 . . . . . . . 3 . . . . . . . . . . . . . Robots Built 1 | . . . . . . . . . . . . . . . . . . . . . 1 . Authchips . | . . . . . . . . . . . . . . . . . . . . . . . Time 81 | . . . . . . . . . . . . . . . . . . . . . 81 . Total Robot Build Rating 1 | . . . . . . . . . . . . . . . . . . . . . 1 . Part Schematics Acquired 17 | . . . . . . . . . 15 . . . 1 . . 1 . . . . . . Parts Built 2 | . . . . . . . . . . . . . . . . 2 . . . . . . Authchips . | . . . . . . . . . . . . . . . . . . . . . . . Time 36 | . . . . . . . . . . . . . . . . 36 . . . . . . Total Part Build Rating 6 | . . . . . . . . . . . . . . . . 6 . . . . . . Parts Repaired 2 | . . . . . . . . . . . . . 1 . . 1 . . . . . . Time 192 | . . . . . . . . . . . . . 68 . . 124 . . . . . . Parts Recycled . | . . . . . . . . . . . . . . . . . . . . . . . Recycled Matter . | . . . . . . . . . . . . . . . . . . . . . . . Retrieved Matter . | . . . . . . . . . . . . . . . . . . . . . . . Retrieved Components . | . . . . . . . . . . . . . . . . . . . . . . . Parts Scanalyzed 2 | . . . . . . . . . . . . . 1 . . 1 . . . . . . Part Schematics Acquired 1 | . . . . . . . . . . . . . . . . 1 . . . . . . Parts Damaged . | . . . . . . . . . . . . . . . . . . . . . . . Bothacking | -11 -10 -9 -9 -9 -9 -6 -6 -6 -6 -5 -5 -5 -5 -5 -5 -4 -4 -4 -4 -3 -3 -3 ------------ Run | Yrd Mat Mat Sto Rec Scr Fac Low Low Zio Pro Fac Was Fac Upp Upp Fac Upp Upp War Pro Res Tes Used RIF Installer . | . . . . . . . . . . . . . . . . . . . . . . . Robots Hacked . | . . . . . . . . . . . . . . . . . . . . . . . Non-combat . | . . . . . . . . . . . . . . . . . . . . . . . Combat . | . . . . . . . . . . . . . . . . . . . . . . . Robot Hacks Applied . | . . . . . . . . . . . . . . . . . . . . . . . Relay Couplers Released 2 | . . . . . . . . . . . . . 2 . . . . . . . . . Machine Destruction 2 | . . . . . . . . . . . . . 2 . . . . . . . . . Fabnet Peak Effective % . | . . . . . . . . . . . . . . . . . . . . . . . Robots Rewired 7 | . . . . . . . . . . . . . . . . . . 2 5 . . . Allies Hacked 3 | . . . . . . . . . . . . . . . . . . . . 3 . . Hacks Repelled . | . . . . . . . . . . . . . . . . . . . . . . . Allies | -11 -10 -9 -9 -9 -9 -6 -6 -6 -6 -5 -5 -5 -5 -5 -5 -4 -4 -4 -4 -3 -3 -3 -------- Run | Yrd Mat Mat Sto Rec Scr Fac Low Low Zio Pro Fac Was Fac Upp Upp Fac Upp Upp War Pro Res Tes Total Allies 36 | . . . . . . 5 . . . . . . 10 . . 13 . 2 5 . 1 . Largest Group 6 | . . . . . . 5 . . . . . . 5 . . 5 1 2 6 6 6 1 Highest-Rated Group 306 | . . . . . . 238 . . . . . . 235 . . 235 43 84 306 306 306 65 Highest-Rated Ally 65 | . . . . . . 50 . . . . . . 47 . . 47 43 46 65 65 65 65 Total Orders 9 | . . . . . . . . . . . . . 5 . . 1 . . 2 . 1 . STAY 2 | . . . . . . . . . . . . . . . . 1 . . 1 . . . FOLLOW 1 | . . . . . . . . . . . . . . . . . . . 1 . . . AID 1 | . . . . . . . . . . . . . . . . . . . . . 1 . EXPLORE 3 | . . . . . . . . . . . . . 3 . . . . . . . . . RETURN 2 | . . . . . . . . . . . . . 2 . . . . . . . . . Ally Attacks 226 | . . . . . . 15 . . . . . . 63 . . 61 9 6 . 27 45 . Total Damage 6241 | . . . . . . 315 . . . . . . 1343 . . 1799 121 151 . 892 1620 . Kills 51 | . . . . . . 4 . . . . . . 11 . . 14 . 1 . 9 12 . Allies Corrupted 2 | . . . . . . . . . . . . . . . . . . 1 . . 1 . Allies Melted 1 | . . . . . . . . . . . . . . . . . . . . . 1 . Intel | -11 -10 -9 -9 -9 -9 -6 -6 -6 -6 -5 -5 -5 -5 -5 -5 -4 -4 -4 -4 -3 -3 -3 ------- Run | Yrd Mat Mat Sto Rec Scr Fac Low Low Zio Pro Fac Was Fac Upp Upp Fac Upp Upp War Pro Res Tes Robot Analysis Total 5 | . 3 . . 2 . . . . . . . . . . . . . . . . . . Derelict Logs Recovered 5 | . . . . . . . 1 . . . . . . 1 1 . 1 1 . . . . Drone Launches 2 | . . . . . . . . . . . . . 2 . . . . . . . . . Drone Recoveries 1 | . . . . . . . . . . . . . 1 . . . . . . . . . Exploration | -11 -10 -9 -9 -9 -9 -6 -6 -6 -6 -5 -5 -5 -5 -5 -5 -4 -4 -4 -4 -3 -3 -3 ------------- Run | Yrd Mat Mat Sto Rec Scr Fac Low Low Zio Pro Fac Was Fac Upp Upp Fac Upp Upp War Pro Res Tes Turns Passed 20219 | 71 593 1556 1449 1035 2976 1113 304 419 412 1079 130 72 2174 2509 85 1316 525 761 368 499 562 211 Spaces Moved 11343 | 42 290 637 710 503 1846 808 335 347 99 178 38 59 1589 494 142 1022 460 605 290 379 333 137 Core 385 | 5 12 . . . . . . . 1 . . . 1 217 104 . . . . . . 45 Treads 4340 | 37 278 637 710 503 1846 103 . . 35 178 13 . . . . . . . . . . . Legs 159 | . . . . . . . . . . . . . . 159 . . . . . . . . Wheels 6225 | . . . . . . 705 335 347 63 . 25 59 1588 118 . 826 460 605 290 379 333 92 Hover . | . . . . . . . . . . . . . . . . . . . . . . . Flight 234 | . . . . . . . . . . . . . . . 38 196 . . . . . . Fastest Speed 32 | 50 160 160 160 160 155 90 90 90 112 560 130 115 90 50 32 32 90 100 100 90 100 50 Average Speed 145 | 146 167 160 160 160 158 107 90 100 270 560 282 117 104 480 45 79 98 106 100 99 100 81 Slowest Speed 2050 | 160 350 160 160 160 160 235 90 112 1450 560 560 130 2050 1400 50 272 100 130 100 100 100 100 Overloaded Moves . | . . . . . . . . . . . . . . . . . . . . . . . Propulsion Burnouts . | . . . . . . . . . . . . . . . . . . . . . . . Robots Hopped 1 | . . . . . . . . . . . . . . . . 1 . . . . . . Cave-ins Triggered 4 | . . . . . . . . 4 . . . . . . . . . . . . . . Exploration Rate (%) 49 | 4 69 76 93 95 88 23 66 45 8 39 3 58 50 87 15 23 59 73 57 74 12 21 Regions Visited 22 Branch Regions 14 Pre-discovered Areas 10 | . . 2 . 7 . . . . . . . . . . . . 1 . . . . . Known Exits Taken 6 | . 1 1 . . . 1 . . . . . . . . 1 1 . . . . 1 . Unknown Exits Taken 14 | 1 . . 1 1 1 . 1 1 1 1 . . 1 1 . . 1 1 1 1 . . Scrap Searched 26 | . . . . . 8 . 1 6 . 2 . . . 2 . . 3 3 . 1 . . Spaces Dug 147 | . . . 3 . . 5 . 57 . . . . 21 15 . 12 . . . 32 2 . Terrain Destroyed 1019 | . . . 10 5 . 93 . 74 22 70 . . 132 74 . 234 35 92 . 154 7 17 Melee 3 | . . . 3 . . . . . . . . . . . . . . . . . . . Projectile 488 | . . . . . . 47 . 74 22 15 . . 88 29 . 132 35 29 . 8 4 5 AOE 525 | . . . 7 5 . 46 . . . 55 . . 44 45 . 102 . 63 . 146 . 12 Terrain Rammed . | . . . . . . . . . . . . . . . . . . . . . . . Walls Destroyed . | . . . . . . . . . . . . . . . . . . . . . . . Machines Disabled . | . . . . . . . . . . . . . . . . . . . . . . . Actions | -11 -10 -9 -9 -9 -9 -6 -6 -6 -6 -5 -5 -5 -5 -5 -5 -4 -4 -4 -4 -3 -3 -3 --------- Run | Yrd Mat Mat Sto Rec Scr Fac Low Low Zio Pro Fac Was Fac Upp Upp Fac Upp Upp War Pro Res Tes Total 13639 | 48 343 943 869 726 1901 968 337 381 189 205 54 61 1884 568 156 1352 489 669 368 455 464 209 Wait 934 | . 8 128 29 218 35 29 . 8 19 . 9 . 91 11 7 135 9 18 46 37 87 10 Move 11318 | 41 289 636 709 502 1845 807 334 344 98 177 38 58 1588 493 141 1019 459 604 289 378 332 137 Hop 1 | . . . . . . . . . . . . . . . . 1 . . . . . . Pick Up 119 | 1 7 10 6 . 7 14 1 . 5 1 . . 26 9 . 19 1 2 . 3 1 6 Fast Attach 82 | 6 4 3 3 . 1 13 . 3 8 . 3 . 10 2 4 16 . . 1 2 1 2 Attach 53 | . 2 6 1 . . 5 . 1 6 . . . 12 11 . 3 . . . 2 2 2 Detach 28 | . 2 1 . . 1 4 . . 3 . . 1 8 2 . 3 . . 1 1 . 1 Swap 93 | . 3 11 19 . 2 7 1 . 4 1 . 2 20 3 . 11 1 2 1 2 . 3 Drop 126 | . 1 12 13 . 10 23 1 2 2 . 1 . 24 3 . 15 1 2 2 4 1 9 Fire 775 | . 26 132 74 3 . 56 . 21 44 26 3 . 104 34 4 121 18 27 . 25 39 18 Melee 10 | . . . 8 . . 2 . . . . . . . . . . . . . . . . Ram 5 | . . . . . . . . . . . . . 1 . . 1 . . . . 1 2 Kick . | . . . . . . . . . . . . . . . . . . . . . . . Crush 15 | . 1 4 7 3 . . . . . . . . . . . . . . . . . . Escape Stasis 37 | . . . . . . 8 . 2 . . . . . . . 8 . . . . . 19 Rewire 43 | . . . . . . . . . . . . . . . . . . 14 28 1 . . Trap . | . . . . . . . . . . . . . . . . . . . . . . . Miscellaneous . | . . . . . . . . . . . . . . . . . . . . . . . Route ------- -11/Scrapyard -10/Materials (discovered 5 exits: *Mat x3 / Min / Sub) -9/Materials (discovered 5 exits: *Mat x3 / *Min / *Sto) -9/Storage (discovered 2 exits: *Mat / *Rec) -9/Recycling (discovered 2 exits: *Fac / [*Scr]) -9/Scraptown (discovered 2 exits: *Fac x2) -6/Factory (discovered 2 exits: *Low x2) -6/Lower Caves -6/Lower Caves -6/Zion -5/Proximity Caves -5/Factory -5/Waste -5/Factory (discovered 3 exits: *Fac x2 / *Upp) -5/Upper Caves -5/Upper Caves -4/Factory (discovered 5 exits: *Res x2 / *Upp x2 / Arm) -4/Upper Caves -4/Upper Caves (discovered 2 exits: *Res / *War) -4/Warlord -3/Proximity Caves -3/Research (discovered 2 exits: *Tes x2) -3/Testing History --------- Turn | Location | Event 48 | -11/Scrapyard | Discovered new exit (range 15) 72 | -11/Scrapyard | Entered Materials 300 | -10/Materials | Build established: Mutant 338 | -10/Materials | Discovered new exit (range 16) 496 | -10/Materials | Identified exit to Materials 524 | -10/Materials | Core integrity fell below 50% 555 | -10/Materials | Identified exit to Mines 555 | -10/Materials | Identified exit to Subcaves 560 | -10/Materials | Lost 4 parts (2n1u1w) 604 | -10/Materials | Learned 2 Mines zone layouts 665 | -10/Materials | Entered another Materials area 665 | -9/Materials | Evolved 2 slots: Propulsion x1, Utility x1 976 | -9/Materials | Identified exit to Mines 976 | -9/Materials | Identified exit to Storage 1497 | -9/Materials | Discovered new exit (range 15) 1773 | -9/Materials | Discovered new exit (range 16) 1783 | -9/Materials | Loaded intel: 18 interactive machine locations 1860 | -9/Materials | Learned Storage trap positions 1891 | -9/Materials | Lost 3 parts (1p1n1u) 1986 | -9/Materials | Learned Storage stockpile data 2034 | -9/Materials | Identified exit to Materials 2100 | -9/Materials | Learned Storage machine intel 2140 | -9/Materials | Learned location of 1 exit from Recycling 2192 | -9/Materials | Learned location of Zion (-6) 2221 | -9/Materials | Entered Storage 2223 | -9/Storage | Loaded intel: 25 trap records 2225 | -9/Storage | Loaded intel: 42 machine locations 2350 | -9/Storage | Build established: Scavenger-Mutant 3182 | -9/Storage | Core integrity fell below 50% 3612 | -9/Storage | Build established: Mutant 3664 | -9/Storage | Used back door to open Recycling access 3664 | -9/Storage | Discovered new exit (range 5) 3670 | -9/Storage | Entered Recycling 3671 | -9/Recycling | Identified exit to Factory 4123 | -9/Recycling | Scanned before Scraplab entrance 4385 | -9/Recycling | Learned location of 3 exits from Materials 4435 | -9/Recycling | Learned 2 Storage zone layouts 4471 | -9/Recycling | Entered Scraplab 4475 | -9/Recycling | Learned Storage garrison access intel 4484 | -9/Recycling | Discovered new exit (range 3) 4507 | -9/Recycling | Learned location of 1 exit from Storage 4705 | -9/Recycling | Entered Scraptown 4861 | -9/Scraptown | Visited UFD Registry 4861 | -9/Scraptown | Registered with UFD as "Carbonblaster" 4885 | -9/Scraptown | Visited Awakened 4929 | -9/Scraptown | Visited TADAMA 4947 | -9/Scraptown | Visited Shadow of the Wyrm 4966 | -9/Scraptown | Visited Bundlers 5141 | -9/Scraptown | Discovered new exit (range 11) 5573 | -9/Scraptown | Visited Scrap Suit Storage 5605 | -9/Scraptown | Visited Derelict Rescue Squad 5649 | -9/Scraptown | Visited Scrapoid Pod Storage 5680 | -9/Scraptown | Visited DA-N13 Charitable Foundation 5697 | -9/Scraptown | Visited Junk Repository 5753 | -9/Scraptown | Visited Supply Room 5777 | -9/Scraptown | Visited Chapter 10 5806 | -9/Scraptown | Visited LU-1G1's Boring Crew 5840 | -9/Scraptown | Visited Science Guys 5865 | -9/Scraptown | Visited Observation Area 6207 | -9/Scraptown | Found Scrapoid Pod 6271 | -9/Scraptown | Found DCF Scrap (27 items) 6448 | -9/Scraptown | Found Scrap Suit 6752 | -9/Scraptown | Visited Junk Repository 6804 | -9/Scraptown | Visited CR-KLE's Repair Center 6818 | -9/Scraptown | CR-KLE repaired 3 parts 7678 | -9/Scraptown | Discovered new exit (range 3) 7681 | -9/Scraptown | Entered Factory 7681 | -6/Factory | Evolved 6 slots: Power x1, Propulsion x1, Utility x3, Weapon x1 7871 | -6/Factory | Identified exit to Lower Caves 7909 | -6/Factory | Scrapoid Pod released 06F05-D (x5) 7938 | -6/Factory | Found Scrap Suit 8215 | -6/Factory | Build established: Scavenger-Scrapper 8794 | -6/Factory | Entered Lower Caves 9027 | -6/Lower Caves | Learned Factory garrison access intel 9056 | -6/Lower Caves | Encountered a Warlord checkpoint 9075 | -6/Lower Caves | Discovered new exit (range 7) 9098 | -6/Lower Caves | Entered another Lower Caves area 9219 | -6/Lower Caves | Attracted the attention of an 0b10 outpost 9265 | -6/Lower Caves | Crushed by falling debris 9281 | -6/Lower Caves | Crushed by falling debris 9281 | -6/Lower Caves | Core integrity fell below 50% 9291 | -6/Lower Caves | Crushed by falling debris 9297 | -6/Lower Caves | Crushed by falling debris 9325 | -6/Lower Caves | Encountered a Warlord checkpoint 9328 | -6/Lower Caves | Lost 3 parts (1n1u1w) 9468 | -6/Lower Caves | Discovered new exit (range 15) 9517 | -6/Lower Caves | Entered Zion 9531 | -6/Zion | Attacked by Zionites 9586 | -6/Zion | 7V-RTL came to Zion's defense 9599 | -6/Zion | Build established: Scrapper 9607 | -6/Zion | Core integrity fell below 20% 9655 | -6/Zion | Lost 3 parts (1n1u1w) 9712 | -6/Zion | Destroyed 7V-RTL 9721 | -6/Zion | Lost 5 parts (2n3u) 9738 | -6/Zion | Found Adv. Powered Armor 9745 | -6/Zion | Discovered new exit (range 10) 9759 | -6/Zion | Found Prototype Device 9759 | -6/Zion | Identified 7V-RTL's Ultimate Field 9794 | -6/Zion | Found Adv. Powered Armor 9929 | -6/Zion | Entered Proximity Caves 10032 | -5/Proximity Caves | Build established: Scavenger-Tank 10924 | -5/Proximity Caves | Discovered new exit (range 14) 11008 | -5/Proximity Caves | Entered Factory 11008 | -5/Factory | Evolved 2 slots: Utility x2 11009 | -5/Factory | Loaded intel: 4 garrison access locations 11138 | -5/Factory | Sucked down chute 11138 | -5/Factory | Entered Waste 11150 | -5/Waste | Spotted C-40 Crusher 11164 | -5/Waste | Spotted C-40 Crusher 11165 | -5/Waste | Spotted C-40 Crusher 11173 | -5/Waste | Spotted C-40 Crusher 11178 | -5/Waste | Spotted C-40 Crusher 11183 | -5/Waste | Crushed by Compactor (1 part destroyed, 2 dropped) 11192 | -5/Waste | Spotted C-40 Crusher 11192 | -5/Waste | Discovered new exit (range 16) 11193 | -5/Waste | Crushed by Compactor (1 part destroyed, 2 dropped) 11203 | -5/Waste | Crushed by Compactor (1 part destroyed, 1 dropped) 11210 | -5/Waste | Entered Factory 11234 | -5/Factory | Lost 3 parts (2u1w) 11409 | -5/Factory | Scrapoid reinforcements arrived 11514 | -5/Factory | Murdered 4 allies 11560 | -5/Factory | Discovered new exit (range 7) 11689 | -5/Factory | Identified exit to Factory 11778 | -5/Factory | Destroyed 7 combat bots 11802 | -5/Factory | Build established: Scavenger-Scrapper 11810 | -5/Factory | First assault squad dispatched 11930 | -5/Factory | Repaired Adv. Powered Armor? 12121 | -5/Factory | Destroyed 9 combat bots 12197 | -5/Factory | Found Prototype Processor 12219 | -5/Factory | Identified Exp. Targeting Computer 12347 | -5/Factory | Garrison activated, responded to threat 12461 | -5/Factory | Discovered exit to Factory (range 8) 12561 | -5/Factory | Scrapoids reinforcements arrived? 12940 | -5/Factory | Spotted B-75 Beast 13349 | -5/Factory | Discovered new exit (range 13) 13384 | -5/Factory | Entered Upper Caves 13451 | -5/Upper Caves | Lost 8 parts (4u4w) 13720 | -5/Upper Caves | Build established: Scavenger-Gunner 14281 | -5/Upper Caves | Core integrity fell below 50% 14336 | -5/Upper Caves | Lost 4 parts (1p1n2w) 14616 | -5/Upper Caves | Build established: Scavenger-Mutant 15818 | -5/Upper Caves | Attracted the attention of an 0b10 checkpoint 15830 | -5/Upper Caves | Released all parts (8) 15890 | -5/Upper Caves | Discovered new exit (range 6) 15893 | -5/Upper Caves | Entered another Upper Caves area 15901 | -5/Upper Caves | Encountered a Warlord checkpoint 15906 | -5/Upper Caves | Discovered exit to Factory (range 13) 15924 | -5/Upper Caves | Learned Factory interactive machine intel 15929 | -5/Upper Caves | Core integrity fell below 20% 15978 | -5/Upper Caves | Entered Factory 15978 | -4/Factory | Evolved 2 slots: Power x1, Utility x1 15979 | -4/Factory | Identified exit to Armory 15980 | -4/Factory | Loaded intel: 52 interactive machine locations 15988 | -4/Factory | Lost 3 allies 16017 | -4/Factory | Scrapoid reinforcements arrived 16150 | -4/Factory | Found Scrap Suit 16219 | -4/Factory | Murdered 3 allies 16233 | -4/Factory | Identified exit to Upper Caves 16319 | -4/Factory | Discovered new exit (range 15) 16497 | -4/Factory | Build established: Scavenger-Scrapper 16632 | -4/Factory | Destroyed 7 combat bots 16779 | -4/Factory | Repaired Broken Exp. Cooling System? 16896 | -4/Factory | Allied Derelicts emerged from ambush trap array 16933 | -4/Factory | Discovered new exit (range 13) 16973 | -4/Factory | Fabricated Imp. Utility Shielding (x2) 16978 | -4/Factory | First assault squad dispatched 17102 | -4/Factory | Scrapoid reinforcements arrived 17188 | -4/Factory | Found Scrap Suit 17261 | -4/Factory | Found Prototype Hackware 17294 | -4/Factory | Entered Upper Caves 17294 | -4/Upper Caves | Accompanied by 1 ally 17388 | -4/Upper Caves | Attracted the attention of an 0b10 checkpoint 17676 | -4/Upper Caves | Spotted B-86 Titan 17725 | -4/Upper Caves | Learned location of Armory (-4) 17809 | -4/Upper Caves | Discovered new exit (range 9) 17819 | -4/Upper Caves | Entered another Upper Caves area 17919 | -4/Upper Caves | Learned Research terminal intel 18098 | -4/Upper Caves | Discovered new exit (range 12) 18245 | -4/Upper Caves | Attacked by a faux Warlord 18509 | -4/Upper Caves | Learned 8 Research zone layouts 18509 | -4/Upper Caves | Learned Factory trap positions 18509 | -4/Upper Caves | Learned Armory trap positions 18509 | -4/Upper Caves | Learned Factory emergency access door positions 18509 | -4/Upper Caves | Learned Factory stockpile data 18509 | -4/Upper Caves | Learned Extension stockpile data 18530 | -4/Upper Caves | Discovered new exit (range 4) 18580 | -4/Upper Caves | Entered Warlord 18580 | -4/Warlord | Accompanied by 1 ally 18613 | -4/Warlord | System corruption cleaned by Quarantine Array 18743 | -4/Warlord | Warlord's base attacked by MAIN.C 18752 | -4/Warlord | Found Prototype Energy Gun 18752 | -4/Warlord | Identified Vortex Shotgun 18898 | -4/Warlord | Opened side exit 18918 | -4/Warlord | Discovered new exit (range 9) 18948 | -4/Warlord | Entered Proximity Caves 18948 | -3/Proximity Caves | Accompanied by 6 allies 19058 | -3/Proximity Caves | Spotter reported a threat 19183 | -3/Proximity Caves | Spotter reported a threat 19212 | -3/Proximity Caves | Destroyed 8 combat bots 19276 | -3/Proximity Caves | Received a Behemoth hack from an annoying Tinkerer 19307 | -3/Proximity Caves | Spotted B-86 Titan 19336 | -3/Proximity Caves | Allies destroyed B-86 Titan 19395 | -3/Proximity Caves | Discovered new exit (range 7) 19447 | -3/Proximity Caves | Entered Research 19447 | -3/Research | Accompanied by 6 allies 19447 | -3/Research | Evolved 2 slots: Utility x1, Weapon x1 19449 | -3/Research | Loaded intel: 21 terminal locations 19454 | -3/Research | Identified Exp. Hacking Suite 19462 | -3/Research | Identified exit to Testing 19540 | -3/Research | System corruption reached 10% 19728 | -3/Research | Fabricated M-13 Machinist (x1) 19760 | -3/Research | Build established: Scavenger-Tank 19905 | -3/Research | Spotted B-86 Titan 19947 | -3/Research | First assault squad dispatched 19957 | -3/Research | Destroyed B-86 Titan 20009 | -3/Research | Entered Testing 20009 | -3/Testing | Accompanied by 1 ally 20025 | -3/Testing | Found Prototype Energy Cannon 20058 | -3/Testing | Identified Potential Cannon 20110 | -3/Testing | Spotted PD-XLZ3TROV9U 20175 | -3/Testing | Released all parts (7) 20200 | -3/Testing | Core integrity fell below 50% 20201 | -3/Testing | Scanned by Researcher 20203 | -3/Testing | Lost 10 parts (3p1n4u2w) 20210 | -3/Testing | Core integrity fell below 20% 20220 | -3/Testing | Destroyed by S-43 Plague with Heavy Machine Gun Last Messages --------------- 20189_ Penetrated by Slug. 20189_ Slug penetrates Wall. 20192_ Penetrated by Slug. 20192_ Slug penetrates Wall. 20199_ Slug penetrates Door. 20199_ Slammed into S-43 Plague. 20201_ C-55 Analyst calls for reinforcements. 20201_ ALERT: Hostile activity reported, dispatching reinforcements to area. 20201_ Held in stasis. 20201_ C-55 Analyst is analyzing... 20201_ ALERT: Encountered unknown unique technology, formulating response. 20205_ Held in stasis. 20209_ Penetrated by Slug. 20209_ Held in stasis. 20209_ C-55 Analyst is analyzing... 20213_ Held in stasis. 20213_ C-55 Analyst is analyzing... 20217_ Held in stasis. 20217_ C-55 Analyst is analyzing... Map ----- +----------------------------------------------------+ | ?????????????????????????????????????????????????? | | ?????????????????????????????????????????????????? | | ?????????????????????????????????????????????????? | | ?????????????????????????????????????????????????? | | ?????????????????????????????????????????????????? | | ##???????????????????????????????????????????????? | | ####?????????????????????????????????????????????? | | ##????????????????????????????????????????????? | | ##???????????????????????????????????????????? | | #???????????????????????????????????????????? | | ####????????????????????????????????????????? | | #????????????????????????????????????????? | | ##????????????????????????????????????????? | | #????????????????????????????????????????? | | # #????????????????????????????????????????? | | # #????###########?????????????????????????? | | #????# #?????????????????????????? | | ####????# ??????????????????????????? | | ##""??????# """ """ #?????????????????????????? | | #??""?????# """ """ #?????????????????????????? | | ####?????????# """ """ #?????????????????????????? | | ?????????????# #?????????????????????????? | | ?????????????# ! ""T"" ??????????????????????????? | | #????????????# """"" ??????????????????????????? | | ########+######"############### """?????????????? | | # h hhss@s c ????????? | | # ############ ????????? | | # #?????????????????????????????? | | + #?????????????????????????????? | | # ##########+#######??????????????????????????? | | # #??????# #??????????????????????????? | | # ######## #??????????????????????????? | | # #??????????????????????????? | | # #??????????????????????????? | | + #??????????????????????????? | | # #??????????????????????????? | | ##+########## #??????????????????????????? | | ????????????# #??????????????????????????? | | ????????????###########??????????????????????????? | | ?????????????????????????????????????????????????? | | ?????????????????????????????????????????????????? | | ?????????????????????????????????????????????????? | | ?????????????????????????????????????????????????? | | ?????????????????????????????????????????????????? | | ?????????????????????????????????????????????????? | | ?????????????????????????????????????????????????? | | ?????????????????????????????????????????????????? | | ?????????????????????????????????????????????????? | | ?????????????????????????????????????????????????? | | ?????????????????????????????????????????????????? | +----------------------------------------------------+ Best States ------------- Heat Dissipation 116 Energy Generation 55 Energy Capacity 1275 Matter Stores 300 Matter Capacity 300 Sight Range 22 Terrain Scan Density 10 ECM Strength 1 Jamming Range 14 Power Amplification 40 Additional Mass Support 12 Armor Coverage 600 Resistance: KI 30 Propulsion Shielding 33 Utility Shielding 66 Weapon Cycling 20 Evasion (%) 63 Targeting Accuracy 12 Core Analysis 6 Recoil Reduction 4 Salvage Targeting 4 Offensive Hacking 26 Defensive Hacking 14 Item Schematics ----------------- Imp. Component Analysis Suite | -6/Zion | Archive EM Disruption Field | -6/Zion | Archive Centrium Wheel | -6/Zion | Archive Imp. Thermal Generator | -6/Zion | Archive Imp. Transmission Jammer | -6/Zion | Archive Imp. System Restoration Module | -6/Zion | Archive Hvy. Phase Cannon | -6/Zion | Archive Matter Compressor | -6/Zion | Archive Imp. Particle Charger | -6/Zion | Archive Imp. System Guard | -6/Zion | Archive Enh. Gauss Cannon | -6/Zion | Archive Flexi-carbon Leg | -6/Zion | Archive Nuclear Pulse Thruster | -6/Zion | Archive Hvy. Treads | -6/Zion | Archive Tiamat Missile Launcher | -6/Zion | Archive Imp. Utility Shielding | -5/Factory | Hacked Micro-nuke Launcher | -4/Factory | Scanalyzed Robot Schematics ------------------ M-13 Machinist | -10/Materials | Hacked T-07 Excavator | -6/Zion | Archive R-06 Scavenger | -6/Zion | Archive M-22 Extractor | -6/Zion | Archive Fabricated ------------ Imp. Utility Shielding | x2 | -4/Factory M-13 Machinist | x1 | -3/Research Alien Tech Used ----------------- None Achievements -------------- None Challenges ------------ None Game ------ Seed GammaShadingDrivehammer Manual? 0 Play Time 01:56:36 Cumulative 554.4 hours Start 2024.12.17 @ 20:51:39 End 2024.12.19 @ 17:09:02 Sessions 9 Manual Loads 0 Difficulty Rogue Special Mode None Game No. 320 Rogue 320 Adventurer 0 Explorer 0 Win Type - Total 43 Types 29/3/5/1/1/0/2/1/1 Lore% 85 Gallery% 86 Achievement% 86 Wizard Run 0 Options --------- Layout 0 ASCII 0 Keyboard 1 Movement Numpad Keybinds 0 Fullscreen 2 Font 18/SmallcapsGlow Map View 76x50 Zoom Use 0% Tactical HUD 1 Map Filters NONE Filters NONE Steam 1 RUN: bf7707eb-71a6-42ca-9e41-a2f73245f781